[Event "Late-Titled-Tuesday-Blitz-October-03-2023"]
[Site "Chess.com"]
[Date "2023.10.03"]
[Round "4"]
[White "KNVB"]
[Black "maksimys18"]
[Result "1-0"]
[WhiteElo "2699"]
[BlackElo "2522"]
[TimeControl "180+1"]
[EndTime "14:38:52 PDT"]
[Termination "KNVB won by checkmate"]

1. d4 {[%clk 0:03:00.9]} 1... e6 {[%clk 0:02:59.7]} 2. Nc3 {[%clk 0:02:57.1]}
2... d5 {[%clk 0:02:59.6]} 3. Bf4 {[%clk 0:02:56.7]} 3... Bd6 {[%clk 0:02:59.3]}
4. e3 {[%clk 0:02:56.8]} 4... f5 {[%clk 0:02:58.9]} 5. Nf3 {[%clk 0:02:31.7]}
5... Nf6 {[%clk 0:02:58.6]} 6. Bd3 {[%clk 0:02:31.1]} 6... O-O {[%clk
0:02:58.1]} 7. O-O {[%clk 0:02:25.7]} 7... Bd7 {[%clk 0:02:55.4]} 8. Ne5 {[%clk
0:01:52]} 8... Be8 {[%clk 0:02:54.7]} 9. h3 {[%clk 0:01:43.2]} 9... Nbd7 {[%clk
0:02:54.3]} 10. Nb5 {[%clk 0:01:37.9]} 10... Bh5 {[%clk 0:02:51.8]} 11. f3
{[%clk 0:01:31.7]} 11... Bxe5 {[%clk 0:02:48.1]} 12. dxe5 {[%clk 0:01:30.4]}
12... Ne8 {[%clk 0:02:46.7]} 13. g4 {[%clk 0:01:14.2]} 13... Bg6 {[%clk
0:02:42.5]} 14. Nd4 {[%clk 0:01:14.3]} 14... Qe7 {[%clk 0:02:38]} 15. b4 {[%clk
0:00:30.5]} 15... c5 {[%clk 0:02:36.3]} 16. bxc5 {[%clk 0:00:29.4]} 16... Nxc5
{[%clk 0:02:35.2]} 17. gxf5 {[%clk 0:00:25.6]} 17... Bxf5 {[%clk 0:02:32.3]} 18.
Bxf5 {[%clk 0:00:20.6]} 18... exf5 {[%clk 0:02:31.4]} 19. Qe1 {[%clk 0:00:14.2]}
19... Nc7 {[%clk 0:02:24.9]} 20. Rb1 {[%clk 0:00:10.4]} 20... b6 {[%clk
0:02:24.5]} 21. Qg3 {[%clk 0:00:08.2]} 21... N7e6 {[%clk 0:02:21.2]} 22. h4
{[%clk 0:00:07.7]} 22... Nxf4 {[%clk 0:02:14.4]} 23. exf4 {[%clk 0:00:05.2]}
23... Ne6 {[%clk 0:02:12.3]} 24. c3 {[%clk 0:00:03.4]} 24... Rac8 {[%clk
0:02:11.1]} 25. Rb3 {[%clk 0:00:02.3]} 25... Rc4 {[%clk 0:02:05.5]} 26. Rd1
{[%clk 0:00:02.6]} 26... Nxd4 {[%clk 0:01:59.9]} 27. Rxd4 {[%clk 0:00:03.5]}
27... Rxd4 {[%clk 0:01:57.7]} 28. cxd4 {[%clk 0:00:04.4]} 28... Rc8 {[%clk
0:01:56.6]} 29. Rb2 {[%clk 0:00:02.3]} 29... Qa3 {[%clk 0:01:31]} 30. Qf2 {[%clk
0:00:02.5]} 30... Qd3 {[%clk 0:01:24.7]} 31. Rd2 {[%clk 0:00:01.9]} 31... Rc1+
{[%clk 0:01:22.7]} 32. Kg2 {[%clk 0:00:02.4]} 32... Qc3 {[%clk 0:01:21.7]} 33.
Re2 {[%clk 0:00:02.1]} 33... Kf7 {[%clk 0:01:15.6]} 34. h5 {[%clk 0:00:02.4]}
34... Qd3 {[%clk 0:01:10.9]} 35. Rd2 {[%clk 0:00:02.3]} 35... Qc3 {[%clk
0:01:03.3]} 36. Re2 {[%clk 0:00:02.8]} 36... Qc4 {[%clk 0:00:46.8]} 37. h6
{[%clk 0:00:02.4]} 37... gxh6 {[%clk 0:00:44.6]} 38. e6+ {[%clk 0:00:02.3]}
38... Ke8 {[%clk 0:00:43.8]} 39. e7 {[%clk 0:00:02.2]} 39... h5 {[%clk
0:00:37.1]} 40. Kh2 {[%clk 0:00:02.3]} 40... b5 {[%clk 0:00:35.5]} 41. Qg2
{[%clk 0:00:02.7]} 41... Qc8 {[%clk 0:00:10]} 42. Qg8+ {[%clk 0:00:02.8]} 42...
Kd7 {[%clk 0:00:10.5]} 43. e8=Q+ {[%clk 0:00:03.2]} 43... Qxe8 {[%clk
0:00:08.8]} 44. Qxe8+ {[%clk 0:00:04.1]} 44... Kc7 {[%clk 0:00:09.4]} 45. Re7+
{[%clk 0:00:04.4]} 45... Kb6 {[%clk 0:00:10.3]} 46. Re6+ {[%clk 0:00:04.1]}
46... Ka5 {[%clk 0:00:10.6]} 47. Qd8+ {[%clk 0:00:04.4]} 47... Kb4 {[%clk
0:00:10.6]} 48. Qxd5 {[%clk 0:00:05]} 48... Rc2+ {[%clk 0:00:10.8]} 49. Kg3
{[%clk 0:00:05.5]} 49... a6 {[%clk 0:00:11.1]} 50. Qb3+ {[%clk 0:00:05.8]} 50...
Ka5 {[%clk 0:00:11.1]} 51. Qa3# {[%clk 0:00:06.5]} 1-0

[Event "Late-Titled-Tuesday-Blitz-October-03-2023"]
[Site "Chess.com"]
[Date "2023.10.03"]
[Round "4"]
[White "ValeriyGrinev"]
[Black "lemures27"]
[Result "0-1"]
[WhiteElo "2584"]
[BlackElo "2446"]
[TimeControl "180+1"]
[EndTime "14:38:53 PDT"]
[Termination "lemures27 won by checkmate"]

1. e4 {[%clk 0:02:55.4]} 1... c5 {[%clk 0:02:58.7]} 2. Nf3 {[%clk 0:02:53.2]}
2... d6 {[%clk 0:02:57.3]} 3. Bb5+ {[%clk 0:02:51.7]} 3... Nd7 {[%clk
0:02:56.6]} 4. O-O {[%clk 0:02:50.3]} 4... Nf6 {[%clk 0:02:55]} 5. Re1 {[%clk
0:02:49.6]} 5... a6 {[%clk 0:02:55.5]} 6. Bd3 {[%clk 0:02:48.3]} 6... b5 {[%clk
0:02:54.6]} 7. c3 {[%clk 0:02:48.2]} 7... Bb7 {[%clk 0:02:54.7]} 8. Bc2 {[%clk
0:02:47.6]} 8... Rc8 {[%clk 0:02:55.2]} 9. d3 {[%clk 0:02:44.5]} 9... e6 {[%clk
0:02:54.4]} 10. Nbd2 {[%clk 0:02:43.4]} 10... Qc7 {[%clk 0:02:54.1]} 11. Nf1
{[%clk 0:02:43]} 11... Be7 {[%clk 0:02:54.4]} 12. Ng3 {[%clk 0:02:42.8]} 12...
O-O {[%clk 0:02:54.2]} 13. a4 {[%clk 0:02:42.5]} 13... Rfe8 {[%clk 0:02:52.9]}
14. axb5 {[%clk 0:02:42.7]} 14... axb5 {[%clk 0:02:52.3]} 15. Bg5 {[%clk
0:02:42.2]} 15... h6 {[%clk 0:02:50.6]} 16. Bxf6 {[%clk 0:02:42.4]} 16... Nxf6
{[%clk 0:02:46.7]} 17. h3 {[%clk 0:02:43]} 17... Ra8 {[%clk 0:02:40.6]} 18. Qd2
{[%clk 0:02:41.1]} 18... Nd7 {[%clk 0:02:28]} 19. h4 {[%clk 0:02:35.2]} 19...
Rec8 {[%clk 0:02:26.4]} 20. Bb3 {[%clk 0:02:31.9]} 20... c4 {[%clk 0:02:22.8]}
21. dxc4 {[%clk 0:02:29.2]} 21... bxc4 {[%clk 0:02:22.2]} 22. Bc2 {[%clk
0:02:29]} 22... Nc5 {[%clk 0:02:21.5]} 23. Qf4 {[%clk 0:02:23.3]} 23... Nd3
{[%clk 0:01:57.4]} 24. Bxd3 {[%clk 0:02:22.2]} 24... cxd3 {[%clk 0:01:56.8]} 25.
Qe3 {[%clk 0:02:22.8]} 25... Qc4 {[%clk 0:01:52.6]} 26. Nd2 {[%clk 0:02:19.1]}
26... Qb5 {[%clk 0:01:51.3]} 27. Rxa8 {[%clk 0:02:13]} 27... Bxa8 {[%clk
0:01:47.3]} 28. Rb1 {[%clk 0:02:06.6]} 28... d5 {[%clk 0:01:44.1]} 29. exd5
{[%clk 0:02:05.2]} 29... Bxd5 {[%clk 0:01:42.1]} 30. h5 {[%clk 0:01:59.6]} 30...
Bg5 {[%clk 0:01:35]} 31. f4 {[%clk 0:01:57.2]} 31... Be7 {[%clk 0:01:31.9]} 32.
Kh2 {[%clk 0:01:56.5]} 32... Bc5 {[%clk 0:01:31.2]} 33. Qe1 {[%clk 0:01:55.7]}
33... Ba2 {[%clk 0:01:26.6]} 34. Ra1 {[%clk 0:01:52.6]} 34... Qxb2 {[%clk
0:01:26]} 35. Nde4 {[%clk 0:01:52.4]} 35... Bf8 {[%clk 0:01:20.9]} 36. f5 {[%clk
0:01:48.4]} 36... Bd5 {[%clk 0:01:17.7]} 37. fxe6 {[%clk 0:01:47.8]} 37... Bxe6
{[%clk 0:01:17.6]} 38. Rd1 {[%clk 0:01:38.9]} 38... Rd8 {[%clk 0:01:16.5]} 39.
Qe3 {[%clk 0:01:31.6]} 39... Qb5 {[%clk 0:01:14.8]} 40. Rd2 {[%clk 0:01:27.5]}
40... Bc4 {[%clk 0:01:11]} 41. Qf3 {[%clk 0:01:20.8]} 41... Qe5 {[%clk
0:01:09.6]} 42. Kh1 {[%clk 0:01:19]} 42... Rb8 {[%clk 0:01:06.5]} 43. Rf2 {[%clk
0:01:14.9]} 43... Rb1+ {[%clk 0:00:58.7]} 44. Kh2 {[%clk 0:01:14.7]} 44... Re1
{[%clk 0:00:52.3]} 45. Nd2 {[%clk 0:01:08.5]} 45... Qxc3 {[%clk 0:00:43.6]} 46.
Nxc4 {[%clk 0:01:07]} 46... Qxc4 {[%clk 0:00:43.3]} 47. Nf5 {[%clk 0:00:59.7]}
47... Re2 {[%clk 0:00:27.4]} 48. Rf1 {[%clk 0:00:53.7]} 48... d2 {[%clk
0:00:26.1]} 49. Qg3 {[%clk 0:00:42.1]} 49... Kh7 {[%clk 0:00:24.5]} 50. Rd1
{[%clk 0:00:33.6]} 50... Qd5 {[%clk 0:00:21.5]} 51. Qg4 {[%clk 0:00:23.4]} 51...
Qe5+ {[%clk 0:00:20.2]} 52. Ng3 {[%clk 0:00:22.6]} 52... Bd6 {[%clk 0:00:19]}
53. Kh3 {[%clk 0:00:18.7]} 53... Re3 {[%clk 0:00:18.2]} 54. Kh2 {[%clk
0:00:14.2]} 54... Rxg3 {[%clk 0:00:18.1]} 55. Kh1 {[%clk 0:00:14.8]} 55... Rxg4
{[%clk 0:00:18]} 56. Rxd2 {[%clk 0:00:15.2]} 56... Qe1# {[%clk 0:00:17.6]} 0-1

[Event "Late-Titled-Tuesday-Blitz-October-03-2023"]
[Site "Chess.com"]
[Date "2023.10.03"]
[Round "4"]
[White "Bauman_Guy"]
[Black "Likvidator228"]
[Result "1-0"]
[WhiteElo "2867"]
[BlackElo "2567"]
[TimeControl "180+1"]
[EndTime "14:38:55 PDT"]
[Termination "Bauman_Guy won by resignation"]

1. e4 {[%clk 0:03:00.9]} 1... c5 {[%clk 0:02:58.3]} 2. Nf3 {[%clk 0:03:00.4]}
2... g6 {[%clk 0:02:58.6]} 3. d4 {[%clk 0:03:00.4]} 3... cxd4 {[%clk 0:02:59.5]}
4. Nxd4 {[%clk 0:03:01.1]} 4... Bg7 {[%clk 0:02:59.5]} 5. c4 {[%clk 0:03:01.7]}
5... Nc6 {[%clk 0:03:00.1]} 6. Be3 {[%clk 0:02:59]} 6... Nf6 {[%clk 0:03:00.6]}
7. Nc3 {[%clk 0:02:52.4]} 7... O-O {[%clk 0:03:00.3]} 8. Be2 {[%clk 0:02:52.6]}
8... d6 {[%clk 0:02:58.6]} 9. O-O {[%clk 0:02:46.9]} 9... Bd7 {[%clk 0:02:58.7]}
10. f3 {[%clk 0:02:46.9]} 10... Nxd4 {[%clk 0:02:58.4]} 11. Bxd4 {[%clk
0:02:47.2]} 11... Bc6 {[%clk 0:02:58.9]} 12. Qd2 {[%clk 0:02:47.5]} 12... a5
{[%clk 0:02:57.4]} 13. b3 {[%clk 0:02:47.4]} 13... Nd7 {[%clk 0:02:57.2]} 14.
Bf2 {[%clk 0:02:46.3]} 14... Nc5 {[%clk 0:02:55.7]} 15. Rab1 {[%clk 0:02:44.7]}
15... e6 {[%clk 0:02:46.6]} 16. Rfe1 {[%clk 0:02:43.4]} 16... Be5 {[%clk
0:02:41.7]} 17. Bf1 {[%clk 0:02:40.4]} 17... Qf6 {[%clk 0:02:30.1]} 18. Ne2
{[%clk 0:02:35.5]} 18... g5 {[%clk 0:02:26.4]} 19. Be3 {[%clk 0:02:25.3]} 19...
h6 {[%clk 0:02:24.5]} 20. h4 {[%clk 0:02:21.2]} 20... gxh4 {[%clk 0:02:22.8]}
21. Bxh6 {[%clk 0:02:20]} 21... Qg6 {[%clk 0:02:19.1]} 22. Qg5 {[%clk
0:02:05.2]} 22... Kh7 {[%clk 0:02:03.8]} 23. Qxg6+ {[%clk 0:01:59.1]} 23... Kxg6
{[%clk 0:02:04]} 24. Bxf8 {[%clk 0:01:55.9]} 24... Rxf8 {[%clk 0:01:58.2]} 25.
Rbd1 {[%clk 0:01:55.6]} 25... Kg5 {[%clk 0:01:49.4]} 26. Kf2 {[%clk 0:01:42]}
26... f5 {[%clk 0:01:43.6]} 27. exf5 {[%clk 0:01:39.3]} 27... exf5 {[%clk
0:01:38.9]} 28. Kg1 {[%clk 0:01:27]} 28... Rg8 {[%clk 0:01:28.4]} 29. Nd4 {[%clk
0:01:16.7]} 29... Kf4 {[%clk 0:01:20.1]} 30. a3 {[%clk 0:00:47.3]} 30... h3
{[%clk 0:01:06.1]} 31. b4 {[%clk 0:00:45]} 31... hxg2 {[%clk 0:01:01.8]} 32.
Bxg2 {[%clk 0:00:42.1]} 32... Na4 {[%clk 0:00:49.8]} 33. Ne6+ {[%clk 0:00:27.1]}
33... Kg3 {[%clk 0:00:49.8]} 34. b5 {[%clk 0:00:22.6]} 34... Bxf3 {[%clk
0:00:44.8]} 35. Rd3 {[%clk 0:00:19.9]} 35... Nc5 {[%clk 0:00:31.7]} 36. Rxf3+
{[%clk 0:00:19.9]} 36... Kh4 {[%clk 0:00:31.9]} 37. Rxe5 {[%clk 0:00:16.8]}
37... dxe5 {[%clk 0:00:31.2]} 38. Nxc5 {[%clk 0:00:17.1]} 38... f4 {[%clk
0:00:31.5]} 39. Nd3 {[%clk 0:00:17.2]} 39... Re8 {[%clk 0:00:28.5]} 40. Nxf4
{[%clk 0:00:17.5]} 40... exf4 {[%clk 0:00:28.6]} 41. Rxf4+ {[%clk 0:00:18.4]}
41... Kg3 {[%clk 0:00:29.3]} 42. Rf3+ {[%clk 0:00:19]} 42... Kg4 {[%clk
0:00:29.5]} 43. Rf7 {[%clk 0:00:19.3]} 43... b6 {[%clk 0:00:28.1]} 44. Rf6
{[%clk 0:00:19.3]} 44... Kg3 {[%clk 0:00:26.3]} 45. Rg6+ {[%clk 0:00:19.2]}
45... Kf4 {[%clk 0:00:26.8]} 46. Rxb6 {[%clk 0:00:20]} 46... Re3 {[%clk
0:00:27.2]} 47. c5 {[%clk 0:00:19.1]} 47... Rxa3 {[%clk 0:00:27.7]} 48. Rf6+
{[%clk 0:00:18.9]} 48... Ke5 {[%clk 0:00:27.7]} 49. Rf1 {[%clk 0:00:19.5]} 49...
Rc3 {[%clk 0:00:26.8]} 50. b6 {[%clk 0:00:19]} 50... Rxc5 {[%clk 0:00:26.6]} 51.
Rb1 {[%clk 0:00:19.7]} 51... Rc8 {[%clk 0:00:24.4]} 52. b7 {[%clk 0:00:20.3]}
52... Rb8 {[%clk 0:00:25.1]} 53. Kf2 {[%clk 0:00:20.5]} 53... Kd6 {[%clk
0:00:25.3]} 54. Ke3 {[%clk 0:00:20.9]} 54... Kc5 {[%clk 0:00:25.6]} 55. Kd3
{[%clk 0:00:20.9]} 55... a4 {[%clk 0:00:24.8]} 56. Kc3 {[%clk 0:00:21.1]} 56...
a3 {[%clk 0:00:25]} 57. Kb3 {[%clk 0:00:21]} 57... Rg8 {[%clk 0:00:24.8]} 58.
Kxa3 {[%clk 0:00:20.3]} 58... Rg3+ {[%clk 0:00:25.5]} 59. Rb3 {[%clk 0:00:20.2]}
59... Rxg2 {[%clk 0:00:24.1]} 60. b8=Q {[%clk 0:00:20.2]} 1-0

[Event "Late-Titled-Tuesday-Blitz-October-03-2023"]
[Site "Chess.com"]
[Date "2023.10.03"]
[Round "4"]
[White "GMBenjaminBok"]
[Black "sofaceindisguise"]
[Result "1-0"]
[WhiteElo "2988"]
[BlackElo "2820"]
[TimeControl "180+1"]
[EndTime "14:38:57 PDT"]
[Termination "GMBenjaminBok won by resignation"]

1. d4 {[%clk 0:03:00.9]} 1... Nf6 {[%clk 0:02:59.2]} 2. c4 {[%clk 0:03:00.6]}
2... e6 {[%clk 0:02:59.3]} 3. Nc3 {[%clk 0:03:00.2]} 3... d5 {[%clk 0:02:59.2]}
4. cxd5 {[%clk 0:03:00.3]} 4... exd5 {[%clk 0:02:59.9]} 5. Bg5 {[%clk
0:03:00.5]} 5... Be7 {[%clk 0:02:59.5]} 6. e3 {[%clk 0:03:01]} 6... c6 {[%clk
0:02:58.3]} 7. Bd3 {[%clk 0:03:00.6]} 7... O-O {[%clk 0:02:58]} 8. h3 {[%clk
0:03:00.2]} 8... Nbd7 {[%clk 0:02:58.4]} 9. Qc2 {[%clk 0:02:59.2]} 9... Re8
{[%clk 0:02:58.5]} 10. Nf3 {[%clk 0:02:58.3]} 10... b5 {[%clk 0:02:51.5]} 11.
O-O {[%clk 0:02:55.5]} 11... a5 {[%clk 0:02:51.7]} 12. Rac1 {[%clk 0:02:23.3]}
12... h6 {[%clk 0:02:49.2]} 13. Bxf6 {[%clk 0:02:01.9]} 13... Bxf6 {[%clk
0:02:45.9]} 14. e4 {[%clk 0:02:00]} 14... Nb6 {[%clk 0:02:21.1]} 15. e5 {[%clk
0:01:51.3]} 15... Be7 {[%clk 0:02:20.1]} 16. Ne2 {[%clk 0:01:50.8]} 16... Bb7
{[%clk 0:02:15.2]} 17. Rfe1 {[%clk 0:01:40.9]} 17... Rc8 {[%clk 0:02:10.9]} 18.
e6 {[%clk 0:01:25.8]} 18... fxe6 {[%clk 0:02:07]} 19. Nf4 {[%clk 0:01:25.7]}
19... Bf6 {[%clk 0:01:47.9]} 20. Nxe6 {[%clk 0:01:12.7]} 20... Qd6 {[%clk
0:01:45.5]} 21. Nc5 {[%clk 0:01:11.7]} 21... Ba8 {[%clk 0:01:29.3]} 22. Bf5
{[%clk 0:01:10.8]} 22... Rcd8 {[%clk 0:01:27.1]} 23. Be6+ {[%clk 0:01:08.1]}
23... Kh8 {[%clk 0:01:25.9]} 24. Ne5 {[%clk 0:01:08.1]} 24... Bxe5 {[%clk
0:01:24.6]} 25. Rxe5 {[%clk 0:01:05.8]} 25... Nc4 {[%clk 0:01:22.7]} 26. Re2
{[%clk 0:01:04.6]} 26... Qf4 {[%clk 0:01:19.1]} 27. Rd1 {[%clk 0:01:01.2]} 27...
Re7 {[%clk 0:01:13.5]} 28. b3 {[%clk 0:00:54.3]} 28... Na3 {[%clk 0:01:04.9]}
29. Qc1 {[%clk 0:00:41.3]} 29... Qxc1 {[%clk 0:01:04.4]} 30. Rxc1 {[%clk
0:00:42.2]} 30... b4 {[%clk 0:01:05]} 31. Bg4 {[%clk 0:00:42.6]} 31... Rde8
{[%clk 0:01:02.9]} 32. Kf1 {[%clk 0:00:13.5]} 32... Nb5 {[%clk 0:01:01.4]} 33.
Rxe7 {[%clk 0:00:12.4]} 33... Rxe7 {[%clk 0:01:02.1]} 34. Rd1 {[%clk 0:00:13.1]}
34... Bb7 {[%clk 0:00:55.7]} 35. Rd3 {[%clk 0:00:11.5]} 35... g6 {[%clk
0:00:38.3]} 36. Re3 {[%clk 0:00:11.3]} 36... Rf7 {[%clk 0:00:33.6]} 37. Re8+
{[%clk 0:00:10.4]} 37... Kg7 {[%clk 0:00:33.8]} 38. Be6 {[%clk 0:00:10.3]} 38...
Rc7 {[%clk 0:00:28.4]} 39. Nd7 {[%clk 0:00:10.9]} 39... h5 {[%clk 0:00:14.8]}
40. Rg8+ {[%clk 0:00:09.3]} 40... Kh6 {[%clk 0:00:15.1]} 41. Ne5 {[%clk
0:00:09.5]} 41... Nxd4 {[%clk 0:00:14.6]} 42. Rxg6+ {[%clk 0:00:08.7]} 42... Kh7
{[%clk 0:00:14.8]} 43. Bg8+ {[%clk 0:00:09.1]} 43... Kh8 {[%clk 0:00:15.5]} 44.
Nf7+ {[%clk 0:00:10]} 44... Rxf7 {[%clk 0:00:14.6]} 45. Bxf7 {[%clk 0:00:10.9]}
45... Ba6+ {[%clk 0:00:15.1]} 46. Ke1 {[%clk 0:00:10.7]} 46... Nb5 {[%clk
0:00:12.7]} 47. Rxc6 {[%clk 0:00:09.9]} 47... Bb7 {[%clk 0:00:12]} 48. Rb6
{[%clk 0:00:10.1]} 48... Bc6 {[%clk 0:00:11.8]} 49. Rxc6 {[%clk 0:00:10.1]}
49... Nc3 {[%clk 0:00:11.8]} 50. Rxc3 {[%clk 0:00:09.5]} 50... bxc3 {[%clk
0:00:12.7]} 51. Bxd5 {[%clk 0:00:09.6]} 51... c2 {[%clk 0:00:13.6]} 52. Kd2
{[%clk 0:00:10]} 52... c1=Q+ {[%clk 0:00:14.5]} 53. Kxc1 {[%clk 0:00:10.3]} 1-0

[Event "Late-Titled-Tuesday-Blitz-October-03-2023"]
[Site "Chess.com"]
[Date "2023.10.03"]
[Round "4"]
[White "aistrel"]
[Black "Evandro_Barbosa"]
[Result "1-0"]
[WhiteElo "2531"]
[BlackElo "2657"]
[TimeControl "180+1"]
[EndTime "14:38:59 PDT"]
[Termination "aistrel won on time"]

1. d4 {[%clk 0:03:00.9]} 1... Nf6 {[%clk 0:02:57.9]} 2. Nc3 {[%clk 0:03:01.5]}
2... d5 {[%clk 0:02:56.9]} 3. Bf4 {[%clk 0:03:02]} 3... a6 {[%clk 0:02:55.1]} 4.
e3 {[%clk 0:03:01.8]} 4... e6 {[%clk 0:02:54.4]} 5. g4 {[%clk 0:03:01.6]} 5...
c5 {[%clk 0:02:53.5]} 6. g5 {[%clk 0:03:02]} 6... Nfd7 {[%clk 0:02:53.2]} 7. h4
{[%clk 0:03:02.6]} 7... Nc6 {[%clk 0:02:53.4]} 8. a3 {[%clk 0:03:01.5]} 8... Qb6
{[%clk 0:02:52.3]} 9. Nf3 {[%clk 0:02:56.6]} 9... cxd4 {[%clk 0:02:46.3]} 10.
exd4 {[%clk 0:02:55.6]} 10... Be7 {[%clk 0:02:41.7]} 11. h5 {[%clk 0:02:44.4]}
11... Qd8 {[%clk 0:02:16.7]} 12. Bd3 {[%clk 0:02:32.6]} 12... Nb6 {[%clk
0:02:10.8]} 13. Qd2 {[%clk 0:02:26.8]} 13... Nc4 {[%clk 0:02:09.3]} 14. Bxc4
{[%clk 0:02:26.3]} 14... dxc4 {[%clk 0:02:10.2]} 15. O-O-O {[%clk 0:02:26.6]}
15... Qa5 {[%clk 0:01:58.2]} 16. d5 {[%clk 0:02:19.3]} 16... exd5 {[%clk
0:01:37.9]} 17. Nxd5 {[%clk 0:02:17.9]} 17... Qxd2+ {[%clk 0:01:36.5]} 18. Rxd2
{[%clk 0:02:18.6]} 18... Bd8 {[%clk 0:01:15.1]} 19. h6 {[%clk 0:01:39.5]} 19...
g6 {[%clk 0:01:08.3]} 20. Bd6 {[%clk 0:01:15.9]} 20... Be6 {[%clk 0:01:04.7]}
21. Nf4 {[%clk 0:01:15.7]} 21... Be7 {[%clk 0:00:54.3]} 22. Bxe7 {[%clk
0:00:46.2]} 22... Kxe7 {[%clk 0:00:48.6]} 23. Re1 {[%clk 0:00:46.7]} 23... c3
{[%clk 0:00:38.7]} 24. bxc3 {[%clk 0:00:36.8]} 24... Rhc8 {[%clk 0:00:38.3]} 25.
Nd5+ {[%clk 0:00:36]} 25... Kf8 {[%clk 0:00:33.3]} 26. Nb6 {[%clk 0:00:36.9]}
26... Rab8 {[%clk 0:00:31.2]} 27. Nxc8 {[%clk 0:00:36.5]} 27... Rxc8 {[%clk
0:00:31.3]} 28. Nd4 {[%clk 0:00:37.1]} 28... Nd8 {[%clk 0:00:25.3]} 29. f4
{[%clk 0:00:28.5]} 29... Rxc3 {[%clk 0:00:19.7]} 30. Nf3 {[%clk 0:00:21]} 30...
Rc8 {[%clk 0:00:19.1]} 31. Ne5 {[%clk 0:00:21]} 31... Bf5 {[%clk 0:00:17.5]} 32.
Nd7+ {[%clk 0:00:20.3]} 32... Bxd7 {[%clk 0:00:14.3]} 33. Rxd7 {[%clk
0:00:21.2]} 33... Ne6 {[%clk 0:00:08.6]} 34. Rxb7 {[%clk 0:00:21.1]} 34... Rc4
{[%clk 0:00:07]} 35. Rxe6 {[%clk 0:00:19.1]} 35... fxe6 {[%clk 0:00:06.1]} 36.
Rxh7 {[%clk 0:00:20]} 36... Rxf4 {[%clk 0:00:06.6]} 37. Rg7 {[%clk 0:00:20.6]}
37... Rh4 {[%clk 0:00:06.6]} 38. Rxg6 {[%clk 0:00:20.9]} 38... e5 {[%clk
0:00:06.9]} 39. Rxa6 {[%clk 0:00:19.7]} 39... Rh5 {[%clk 0:00:05.7]} 40. Rg6
{[%clk 0:00:19]} 40... Kf7 {[%clk 0:00:05.9]} 41. Rg7+ {[%clk 0:00:19.3]} 41...
Ke6 {[%clk 0:00:06.3]} 42. Kd2 {[%clk 0:00:20.2]} 42... Kd5 {[%clk 0:00:06.5]}
43. a4 {[%clk 0:00:20.6]} 43... Kd4 {[%clk 0:00:06.4]} 44. a5 {[%clk 0:00:21.5]}
44... Rh2+ {[%clk 0:00:05.1]} 45. Kc1 {[%clk 0:00:21.8]} 45... e4 {[%clk
0:00:04.8]} 46. h7 {[%clk 0:00:21.2]} 46... e3 {[%clk 0:00:04.5]} 47. g6 {[%clk
0:00:21.6]} 47... Kc3 {[%clk 0:00:04.5]} 48. Kb1 {[%clk 0:00:20.6]} 48... Rh1+
{[%clk 0:00:03.8]} 49. Ka2 {[%clk 0:00:20.1]} 49... e2 {[%clk 0:00:03]} 50. Re7
{[%clk 0:00:20.6]} 50... Rh4 {[%clk 0:00:03.1]} 51. Rxe2 {[%clk 0:00:18.4]}
51... Ra4+ {[%clk 0:00:02]} 52. Kb1 {[%clk 0:00:19]} 1-0